bitfinex-derivatives/quotes_SOLF0:USTF0_20260305
["timestamp","ask_amount","ask_price","bid_price","bid_amount"]
[1772709000504,4.13025609,92.3,92.266,9.751]
[1772709000700,1.64476458,92.345,92.264,3.5680091]
[1772709000905,4.13025609,92.31,92.264,3.5680091]
[1772709001105,1.64476458,92.319,92.264,3.5680091]
[1772709001302,1.64476458,92.319,92.284,9.75]
[1772709001605,4.13025609,92.31,92.284,9.75]
[1772709001908,4.13025609,92.31,92.275,9.75]
[1772709002305,4.13025609,92.31,92.264,3.5680091]
[1772709003011,4.13025609,92.31,92.273,9.751]
[1772709003612,4.13025609,92.31,92.279,9.75]
[1772709003813,4.13025609,92.31,92.274,3.5680091]
[1772709003814,1.64476458,92.319,92.274,3.5680091]
[1772709004003,4.13025609,92.31,92.261,3.5680091]
[1772709004203,4.13025609,92.29,92.261,3.5680091]
[1772709004704,4.13025609,92.3,92.261,3.5680091]
[1772709004909,4.13025609,92.3,92.194,45.91391774]
[1772709004910,4.13025609,92.29,92.247,3.5680091]
[1772709005111,4.13025609,92.27,92.232,3.5680091]
[1772709005414,4.13025609,92.28,92.232,3.5680091]
[1772709005810,4.13025609,92.31,92.251,3.5680091]
[1772709006511,1.64920477,92.309,92.251,3.5680091]
[1772709006810,9.748,92.299,92.251,3.5680091]
[1772709007205,1.64920477,92.299,92.251,3.5680091]
[1772709007410,4.13025609,92.28,92.231,3.5680091]
[1772709008009,4.13025609,92.27,92.231,3.5680091]
[1772709008308,4.13025609,92.28,92.231,3.5680091]
[1772709008513,1.64920477,92.285,92.231,3.5680091]
[1772709009015,4.13025609,92.29,92.233,3.5680091]
[1772709009909,4.13025609,92.28,92.233,3.5680091]
[1772709010715,4.13025609,92.27,92.233,3.5680091]
[1772709011517,4.13025609,92.28,92.233,3.5680091]
[1772709013912,4.13025609,92.28,92.234,9.755]
[1772709014113,4.13025609,92.28,92.235,3.5680091]
[1772709015218,4.13025609,92.28,92.237,3.5680091]
[1772709015816,4.13025609,92.28,92.24,9.754]
[1772709018320,9.75,92.278,92.237,3.5680091]
[1772709019313,4.13025609,92.28,92.238,9.754]
[1772709019919,4.13025609,92.28,92.244,9.754]
[1772709021712,11.27844717,92.279,92.239,3.84584712]
[1772709021909,4.13025609,92.26,92.221,3.84584712]
[1772709022617,4.13025609,92.26,92.23,9.755]
[1772709022920,4.13025609,92.24,92.198,3.84584712]
[1772709023518,4.13025609,92.25,92.208,3.84584712]
[1772709024315,4.13025609,92.24,92.208,3.84584712]
[1772709024518,4.13025609,92.24,92.197,264.99924023]
[1772709024519,4.13025609,92.23,92.197,264.99924023]
[1772709024911,4.13025609,92.23,92.197,268.84508735]
[1772709025524,4.13025609,92.24,92.197,268.84508735]
[1772709027224,4.13025609,92.24,92.198,3.91105215]
[1772709027625,4.13025609,92.22,92.181,3.91105215]
[1772709027815,4.13025609,92.2,92.161,3.91105215]
[1772709028619,4.13025609,92.19,92.117,3.91105215]
[1772709028820,4.13025609,92.19,92.141,3.91105215]
[1772709029523,4.13025609,92.2,92.146,3.91105215]
[1772709029719,4.13025609,92.2,92.151,3.91105215]
[1772709030526,4.13025609,92.2,92.154,3.91105215]
[1772709031422,1.3155398,92.209,92.158,3.91105215]
[1772709031624,4.13025609,92.2,92.158,3.91105215]
[1772709032321,9.758,92.208,92.159,13.67405215]
[1772709032623,4.13025609,92.21,92.16,4.13025609]
[1772709032826,4.13025609,92.21,92.161,3.91105215]
[1772709033023,4.13025609,92.2,92.161,3.91105215]
[1772709033226,1.41665488,92.209,92.161,3.91105215]
[1772709033529,4.13025609,92.22,92.171,3.91105215]
[1772709034321,4.13025609,92.23,92.181,3.91105215]
[1772709034721,4.13025609,92.24,92.181,3.91105215]
[1772709034926,1.40993962,92.242,92.192,3.91105215]
[1772709035222,1.40993962,92.242,92.19,4.13025609]
[1772709035223,4.13025609,92.25,92.201,3.91105215]
[1772709035530,1.40993962,92.257,92.21,8.04130824]
[1772709035826,10.0895948,92.317,92.156,19.527]
[1772709035827,4.13025609,92.24,92.195,3.91105215]
[1772709036023,4.13025609,92.23,92.195,3.91105215]
[1772709036219,4.13025609,92.24,92.195,3.91105215]
[1772709037727,4.13025609,92.23,92.195,3.91105215]
[1772709038025,4.13025609,92.24,92.195,3.91105215]
[1772709038226,13.88425609,92.24,92.195,3.91105215]
[1772709038821,9.755,92.233,92.18,8.04130824]
[1772709039022,4.13025609,92.23,92.181,3.91105215]
[1772709039424,9.756,92.219,92.181,3.91105215]
[1772709039629,4.13025609,92.23,92.181,3.91105215]
[1772709039824,4.13025609,92.22,92.165,3.91105215]
[1772709040030,4.13025609,92.21,92.165,3.91105215]
[1772709040232,4.13025609,92.2,92.165,3.91105215]
[1772709040832,4.13025609,92.21,92.165,3.91105215]
[1772709041233,4.13025609,92.2,92.165,3.91105215]
[1772709041735,9.759,92.199,92.165,3.91105215]
[1772709043037,9.759,92.192,92.165,3.91105215]
[1772709044139,1.64916023,92.219,92.171,3.91105215]
[1772709044335,4.13025609,92.23,92.171,3.91105215]
[1772709044532,1.86533331,92.229,92.171,3.91105215]
[1772709045041,9.756,92.222,92.171,3.91105215]
[1772709046440,9.756,92.222,92.174,3.91105215]
[1772709046841,4.13025609,92.24,92.191,3.91105215]
[1772709048045,1.83868795,92.239,92.191,3.91105215]
[1772709048440,9.755,92.231,92.191,3.91105215]
[1772709048639,4.13025609,92.25,92.201,3.91105215]
[1772709049538,1.90925492,92.249,92.201,3.91105215]
[1772709049943,11.66225492,92.249,92.203,9.758]
[1772709052648,11.66225492,92.249,92.201,3.91105215]
[1772709054739,1.92593727,92.264,92.211,3.61318661]
[1772709054938,4.13620287,92.26,92.211,3.61318661]
[1772709055144,6.06214014,92.26,92.211,3.61318661]
[1772709055345,1.92593727,92.259,92.211,3.61318661]
[1772709055544,9.753,92.249,92.211,3.61318661]
[1772709058050,4.13620287,92.25,92.211,3.61318661]
[1772709058248,1.97982037,92.249,92.197,3.61318661]
[1772709058553,6.11602324,92.24,92.197,3.61318661]
[1772709058852,9.755,92.231,92.197,3.61318661]
[1772709059446,9.755,92.231,92.201,3.61318661]
[1772709059850,9.754,92.239,92.201,3.61318661]
[1772709060554,9.755,92.233,92.201,3.61318661]
[1772709061248,4.13620287,92.25,92.201,3.61318661]
[1772709061455,2.00472092,92.239,92.186,3.61318661]
[1772709061746,2.00472092,92.239,92.133,19.531]
[1772709061747,3.78469822,92.213,92.16,4.13620287]
[1772709061952,4.13620287,92.2,92.15,4.13620287]
[1772709062144,3.78469822,92.209,92.15,4.13620287]
[1772709062348,3.78469822,92.209,92.16,4.13620287]
[1772709062547,9.757,92.21,92.16,4.13620287]
[1772709062848,17.67790109,92.21,92.16,4.13620287]
[1772709063342,9.757,92.21,92.16,4.13620287]
[1772709063542,3.78469822,92.235,92.18,4.13620287]
[1772709063849,13.46975196,92.296,92.201,3.61318661]
[1772709063850,3.78469822,92.252,92.201,3.61318661]
[1772709064153,9.754,92.243,92.201,3.61318661]
[1772709064646,3.78469822,92.239,92.184,3.61318661]
[1772709064851,4.13620287,92.22,92.17,4.13620287]
[1772709065248,4.13620287,92.22,92.168,3.61318661]
[1772709065855,4.13620287,92.24,92.19,7.74938948]
[1772709066154,4.13620287,92.24,92.191,3.61318661]
[1772709066355,3.78469822,92.246,92.2,7.74938948]
[1772709066549,4.13620287,92.25,92.201,3.61318661]
[1772709066950,7.92090109,92.26,92.201,3.61318661]
[1772709067147,3.78469822,92.259,92.202,3.61318661]
[1772709067353,10.0895948,92.3,92.202,3.61318661]
[1772709067354,7.92090109,92.25,92.202,3.61318661]
[1772709067756,4.13620287,92.24,92.194,13.37218661]
[1772709067953,4.13620287,92.24,92.194,3.61318661]
[1772709068450,3.78469822,92.249,92.194,3.61318661]
[1772709068654,3.78469822,92.264,92.22,4.13620287]
[1772709069056,4.13620287,92.26,92.211,3.61318661]
[1772709069360,7.92090109,92.26,92.221,9.756]
[1772709069558,3.78469822,92.259,92.221,9.756]
[1772709070055,19.491,92.325,92.211,3.61318661]
[1772709070056,3.78469822,92.269,92.211,3.61318661]
[1772709070258,4.13620287,92.26,92.211,3.61318661]
[1772709070459,3.78469822,92.269,92.211,3.61318661]
[1772709070656,4.13620287,92.26,92.211,3.61318661]
[1772709071461,3.78469822,92.269,92.212,3.61318661]
[1772709072050,9.751,92.268,92.213,9.757]
[1772709072250,4.13620287,92.26,92.212,3.61318661]
[1772709073257,3.78469822,92.258,92.212,3.61318661]
[1772709073555,4.13620287,92.25,92.212,3.61318661]
[1772709073958,3.78469822,92.269,92.221,3.61318661]
[1772709074164,4.13620287,92.28,92.221,3.61318661]
[1772709074358,9.75,92.283,92.231,3.61318661]
[1772709075258,4.13620287,92.3,92.251,3.61318661]
[1772709075454,3.78469822,92.301,92.251,3.61318661]
[1772709075857,9.749,92.293,92.251,3.61318661]
[1772709076161,4.13620287,92.3,92.251,3.61318661]
[1772709076762,4.13620287,92.31,92.253,3.61318661]
[1772709077059,4.13620287,92.31,92.26,4.13620287]
[1772709077264,3.78469822,92.317,92.27,4.13620287]
[1772709077460,3.78469822,92.317,92.271,3.61318661]
[1772709077660,4.13620287,92.33,92.271,3.61318661]
[1772709078261,4.13620287,92.3,92.224,3.61318661]
[1772709078566,3.78469822,92.299,92.241,3.61318661]
[1772709078765,3.78469822,92.299,92.244,3.69783433]
[1772709080266,3.78469822,92.299,92.245,9.754]
[1772709080468,3.78469822,92.299,92.246,3.69783433]
[1772709080866,3.78469822,92.299,92.255,9.753]
[1772709081167,9.747,92.312,92.256,3.69783433]
[1772709081361,3.91434566,92.317,92.26,9.752]
[1772709081561,3.91434566,92.317,92.261,3.69783433]
[1772709082162,3.91434566,92.317,92.263,3.69783433]
[1772709082163,9.746,92.315,92.263,3.69783433]
[1772709082564,3.91434566,92.339,92.263,3.69783433]
[1772709082769,3.91434566,92.339,92.282,3.69783433]
[1772709082972,3.91434566,92.359,92.282,3.69783433]
[1772709083167,3.91434566,92.359,92.3,9.748]
[1772709083570,3.91434566,92.359,92.282,3.69783433]
[1772709083868,3.91434566,92.359,92.306,9.747]
[1772709084068,3.91434566,92.359,92.302,3.69783433]
[1772709085073,3.91434566,92.348,92.286,9.749]
[1772709085271,3.91434566,92.348,92.287,3.69783433]
[1772709086472,3.91434566,92.348,92.302,9.748]
[1772709086674,3.91434566,92.348,92.287,3.69783433]
[1772709087073,3.91434566,92.345,92.271,3.73320039]
[1772709087675,3.89356054,92.334,92.284,9.75]
[1772709088071,3.89356054,92.359,92.271,3.73320039]
[1772709088770,8.85548713,92.36,92.27,8.85548713]
[1772709088771,3.89356054,92.356,92.302,9.748]
[1772709089366,13.63756054,92.342,92.286,3.73320039]
[1772709089577,3.89356054,92.341,92.286,3.73320039]
[1772709090069,3.89356054,92.341,92.295,9.748]
[1772709090275,3.89356054,92.341,92.286,3.73320039]
[1772709090871,3.89356054,92.338,92.265,3.73320039]
[1772709091574,3.89356054,92.323,92.265,3.73320039]
[1772709091774,3.89356054,92.359,92.265,3.73320039]
[1772709092177,3.89356054,92.341,92.269,3.73320039]
[1772709092572,3.89356054,92.326,92.269,3.73320039]
[1772709093877,3.89356054,92.326,92.259,3.73320039]
[1772709094582,9.746,92.317,92.259,3.73320039]
[1772709095476,3.89356054,92.326,92.259,3.73320039]
[1772709095477,9.747,92.31,92.259,3.73320039]
[1772709096378,9.746,92.318,92.259,3.73320039]
[1772709096679,3.89356054,92.344,92.259,3.73320039]
[1772709096883,3.89356054,92.329,92.259,3.73320039]
[1772709099086,9.749,92.291,92.259,3.73320039]
[1772709099987,3.89356054,92.311,92.259,3.73320039]
[1772709102584,4.13203252,92.31,92.259,3.73320039]
[1772709102884,4.13203252,92.31,92.26,13.48520039]
[1772709103388,3.89356054,92.309,92.26,3.73320039]
[1772709103583,4.13203252,92.3,92.26,3.73320039]
[1772709103882,4.13203252,92.3,92.241,3.73320039]
[1772709104587,3.89356054,92.299,92.245,3.73320039]
[1772709104788,4.13203252,92.29,92.245,3.73320039]
[1772709105379,4.13203252,92.28,92.22,4.13203252]
[1772709105582,4.13203252,92.28,92.231,3.73320039]
[1772709106184,4.13203252,92.28,92.24,9.754]
[1772709106385,4.13203252,92.25,92.201,3.73320039]
[1772709106591,4.13203252,92.24,92.201,3.73320039]
[1772709108189,4.13203252,92.25,92.201,3.73320039]
[1772709108585,9.753,92.255,92.201,3.73320039]
[1772709109083,3.89356054,92.266,92.203,3.84852373]
[1772709109482,3.89356054,92.266,92.205,3.84852373]
[1772709111194,3.89356054,92.266,92.208,13.60652373]
[1772709111498,3.89356054,92.266,92.209,3.84852373]
[1772709112196,3.89356054,92.266,92.21,9.757]
[1772709113194,8.86378497,92.27,92.209,3.84852373]
[1772709113394,3.59955112,92.281,92.209,3.84852373]
[1772709113596,3.59955112,92.269,92.209,3.84852373]
[1772709115195,3.59955112,92.269,92.212,3.84852373]
[1772709116904,8.86154023,92.26,92.212,3.84852373]
[1772709117091,3.59955112,92.259,92.212,3.84852373]
[1772709117493,3.59955112,92.256,92.195,3.84852373]
[1772709118398,9.753,92.249,92.195,3.84852373]
[1772709119802,3.59955112,92.242,92.195,3.84852373]
[1772709120003,12.46109135,92.24,92.195,3.84852373]
[1772709123703,3.59955112,92.239,92.186,9.76]
[1772709123904,3.59955112,92.239,92.18,3.84852373]
[1772709124405,3.59955112,92.229,92.171,9.761]
[1772709124606,3.59955112,92.199,92.132,3.84852373]
[1772709126414,3.59955112,92.199,92.156,9.763]
[1772709128312,3.59955112,92.199,92.147,3.84852373]
[1772709128313,3.59955112,92.199,92.164,9.762]
[1772709128709,3.59955112,92.216,92.147,3.84852373]
[1772709128903,3.59955112,92.216,92.16,3.84852373]
[1772709130217,3.59955112,92.213,92.13,3.84852373]
[1772709130616,0.00043191,92.19,92.131,3.84852373]
[1772709130920,4.14243191,92.2,92.176,9.761]
[1772709131304,4.14243191,92.2,92.167,9.762]
[1772709131510,4.14243191,92.19,92.167,9.762]
[1772709132309,0.00043191,92.19,92.167,9.762]
[1772709133911,0.00043191,92.18,92.167,9.762]
[1772709134813,4.14243191,92.19,92.167,9.762]
[1772709135713,4.14243191,92.18,92.158,9.763]
[1772709136316,4.14243191,92.18,92.145,3.84852373]
[1772709137221,4.14243191,92.19,92.145,3.84852373]
[1772709137616,4.14243191,92.2,92.147,3.84852373]
[1772709138524,4.14243191,92.2,92.153,9.763]
[1772709138715,4.14243191,92.19,92.153,9.763]
[1772709139117,4.14243191,92.19,92.153,13.53917792]
[1772709140319,4.14243191,92.19,92.154,3.77617792]
[1772709140821,4.14243191,92.2,92.156,3.77617792]
[1772709141034,4.14243191,92.23,92.171,3.77617792]
[1772709141327,4.14243191,92.23,92.181,3.77617792]
[1772709142518,3.84162135,92.259,92.186,3.77617792]
[1772709143228,9.755,92.237,92.19,3.77617792]
[1772709144427,3.84162135,92.245,92.19,3.77617792]
[1772709145821,3.84162135,92.262,92.192,3.77617792]
[1772709146032,3.84162135,92.279,92.201,3.77617792]
[1772709146636,3.84162135,92.277,92.21,9.757]
[1772709146933,3.84162135,92.277,92.201,3.77617792]
[1772709147135,9.75,92.276,92.202,9.758]
[1772709147333,3.80933245,92.275,92.203,3.86513123]
[1772709148534,3.80933245,92.29,92.23,3.86513123]
[1772709149428,3.80933245,92.29,92.237,9.754]
[1772709150933,3.80933245,92.289,92.229,9.755]
[1772709151134,3.80933245,92.288,92.214,3.86513123]
[1772709151329,3.80933245,92.269,92.196,9.759]
[1772709151727,3.80933245,92.249,92.196,9.759]
[1772709153433,3.80933245,92.246,92.196,9.759]
[1772709154033,3.80933245,92.246,92.181,3.86513123]
[1772709154034,3.80933245,92.242,92.187,9.76]
[1772709154934,3.80933245,92.233,92.181,3.86513123]
[1772709155144,3.80933245,92.233,92.179,9.761]
[1772709155342,3.80933245,92.233,92.166,3.86513123]
[1772709155538,9.755,92.23,92.177,9.761]
[1772709155737,3.80933245,92.229,92.178,3.86513123]
[1772709155944,3.80933245,92.269,92.178,3.86513123]
[1772709156137,8.86781629,92.27,92.16,8.86781629]
[1772709156138,3.80933245,92.247,92.189,3.86513123]
[1772709156345,3.80933245,92.269,92.189,3.86513123]
[1772709156940,9.752,92.263,92.212,9.757]
[1772709157742,9.752,92.263,92.212,13.62213123]
[1772709159438,9.752,92.263,92.214,13.62213123]
[1772709159641,3.80933245,92.269,92.215,3.86513123]
[1772709160441,3.80933245,92.269,92.218,9.756]
[1772709160737,3.80933245,92.269,92.218,13.62113123]
[1772709161040,3.80933245,92.269,92.219,3.86513123]
[1772709162438,3.80933245,92.269,92.223,9.756]
[1772709162644,9.751,92.267,92.219,3.86513123]
[1772709162942,4.13525448,92.26,92.219,3.86513123]
[1772709164448,4.13525448,92.26,92.22,9.756]
[1772709168345,4.13525448,92.27,92.227,3.86513123]
[1772709168546,9.751,92.275,92.227,3.86513123]
[1772709169041,3.65826454,92.279,92.232,9.755]
[1772709169242,4.13525448,92.27,92.232,9.755]
[1772709171444,4.13525448,92.27,92.238,9.754]
[1772709172148,3.65826454,92.279,92.244,9.754]
[1772709172348,4.13525448,92.27,92.227,3.86513123]
[1772709172647,4.13525448,92.29,92.246,9.754]
[1772709173444,4.13525448,92.29,92.253,9.753]
[1772709173746,4.13525448,92.29,92.245,3.93215365]
[1772709174144,4.13525448,92.29,92.246,9.754]
[1772709176453,13.88239362,92.29,92.246,9.754]
[1772709177855,4.13339362,92.28,92.246,9.754]
[1772709178048,4.13339362,92.28,92.239,9.754]
[1772709178751,4.13339362,92.27,92.23,9.755]
[1772709179953,4.13339362,92.27,92.233,3.93215365]
[1772709180259,9.75,92.278,92.233,3.93215365]
[1772709181354,9.75,92.278,92.236,9.755]
[1772709181554,4.13339362,92.27,92.236,9.755]
[1772709182355,9.75,92.278,92.242,9.754]
[1772709183446,4.13339362,92.28,92.242,3.93215365]
[1772709183650,4.13339362,92.3,92.251,3.93215365]
[1772709184055,4.13339362,92.3,92.191,151.819]
[1772709184056,4.13339362,92.3,92.268,3.93215365]
[1772709184251,4.13339362,92.32,92.268,3.93215365]
[1772709184456,10.06657869,92.362,92.268,3.93215365]
[1772709184457,4.13339362,92.3,92.268,3.93215365]
[1772709184961,4.13339362,92.3,92.241,3.93215365]
[1772709185461,4.13339362,92.3,92.264,9.752]
[1772709186763,3.65826454,92.319,92.272,3.93215365]
[1772709187068,4.13339362,92.31,92.272,3.93215365]
[1772709187656,4.13339362,92.31,92.273,9.751]
[1772709188561,4.13339362,92.31,92.272,3.93215365]
[1772709191364,4.13339362,92.31,92.28,9.75]
[1772709194161,4.13339362,92.31,92.272,3.93215365]
[1772709194162,3.65826454,92.319,92.272,13.68315365]
[1772709194366,4.13339362,92.3,92.272,9.751]
[1772709194869,4.13339362,92.31,92.272,9.751]
[1772709195666,4.13339362,92.31,92.279,9.75]
[1772709196369,4.13339362,92.31,92.271,9.751]
[1772709207175,8.09021636,92.31,92.271,9.751]
[1772709207374,3.95682274,92.309,92.271,9.751]
[1772709207571,4.13339362,92.29,92.261,9.752]
[1772709208674,4.13339362,92.29,92.267,9.751]
[1772709209571,4.13339362,92.29,92.26,9.752]
[1772709211066,4.13339362,92.29,92.255,3.92698981]
[1772709211471,3.95682274,92.299,92.255,3.92698981]
[1772709211675,4.13339362,92.3,92.258,3.92698981]
[1772709212269,4.13339362,92.3,92.24,4.13339362]
[1772709212475,4.13339362,92.27,92.241,3.92698981]
[1772709212875,4.13339362,92.28,92.241,3.92698981]
[1772709214581,4.13339362,92.28,92.241,13.68098981]
[1772709215386,3.95682274,92.321,92.247,3.92698981]
[1772709215680,4.13339362,92.31,92.251,3.92698981]
[1772709215983,4.13339362,92.31,92.25,4.13339362]
[1772709215984,3.95682274,92.31,92.27,9.751]
[1772709216380,3.95682274,92.309,92.268,3.92698981]
[1772709216579,4.13339362,92.3,92.268,3.92698981]
[1772709216982,3.95682274,92.309,92.268,3.92698981]
[1772709217187,3.95682274,92.309,92.269,9.751]
[1772709217381,3.95682274,92.309,92.27,3.92698981]
[1772709219585,13.70382274,92.309,92.27,3.92698981]
[1772709220883,3.95682274,92.306,92.261,9.752]
[1772709221087,4.13339362,92.3,92.261,9.752]
[1772709221287,4.13339362,92.3,92.263,9.752]
[1772709221484,9.747,92.305,92.263,9.752]
[1772709223791,9.747,92.313,92.264,3.92698981]
[1772709224291,3.95682274,92.309,92.265,3.92698981]
[1772709226688,9.746,92.317,92.269,3.92698981]
[1772709226889,3.95682274,92.357,92.291,3.92698981]
[1772709227092,3.95682274,92.357,92.232,151.752]
[1772709227093,3.95682274,92.355,92.301,3.92698981]
[1772709227489,4.13339362,92.35,92.301,3.92698981]
[1772709228492,4.13339362,92.35,92.305,3.92698981]
[1772709228693,3.95682274,92.355,92.305,3.92698981]
[1772709229095,9.742,92.353,92.305,3.92698981]
[1772709229389,3.95511386,92.349,92.305,3.92698981]
[1772709229594,4.13339362,92.37,92.311,3.880387]
[1772709229796,4.13339362,92.37,92.31,4.13339362]
[1772709229797,9.741,92.369,92.317,3.880387]
[1772709231501,13.69611386,92.369,92.317,3.880387]
[1772709232798,13.69611386,92.369,92.32,4.13339362]
[1772709233395,13.69611386,92.369,92.263,19.504]
[1772709233396,9.74,92.377,92.33,4.13339362]
[1772709233595,3.95511386,92.383,92.34,4.13339362]
[1772709233795,3.95511386,92.397,92.341,3.880387]
[1772709233995,3.95511386,92.397,92.344,3.880387]
[1772709234196,3.95511386,92.397,92.35,4.13339362]
[1772709234393,3.95511386,92.379,92.32,4.13339362]
[1772709234603,3.95511386,92.359,92.315,13.626387]
[1772709234792,3.95511386,92.359,92.278,20.00157616]
[1772709235095,4.13339362,92.35,92.301,3.880387]
[1772709235295,13.87639362,92.35,92.301,3.880387]
[1772709235494,3.95511386,92.349,92.301,3.880387]
[1772709237396,3.95511386,92.349,92.301,13.628387]
[1772709237598,3.95511386,92.349,92.302,3.880387]
[1772709237798,8.08339214,92.33,92.288,3.880387]
[1772709238002,3.95511386,92.329,92.288,3.880387]
[1772709239695,3.95511386,92.329,92.237,19.509]
[1772709239696,8.08339214,92.32,92.274,3.880387]
[1772709239902,3.95511386,92.319,92.274,3.880387]
[1772709241400,3.95511386,92.319,92.274,13.631387]
[1772709241596,3.95511386,92.339,92.281,3.880387]
[1772709241797,4.12827828,92.33,92.281,3.880387]
[1772709242002,4.12827828,92.32,92.261,3.880387]
[1772709242197,8.08339214,92.32,92.261,3.880387]
[1772709243406,8.08339214,92.32,92.276,9.75]
[1772709243809,4.12827828,92.33,92.276,3.880387]
[1772709244809,3.95511386,92.337,92.285,3.880387]
[1772709245609,4.12827828,92.33,92.285,3.880387]
[1772709246412,4.12827828,92.33,92.292,9.749]
[1772709247613,4.12827828,92.33,92.285,3.880387]
[1772709247814,3.95511386,92.329,92.285,3.880387]
[1772709249014,4.12827828,92.32,92.285,3.880387]
[1772709249410,4.12827828,92.32,92.288,9.749]
[1772709249616,4.12827828,92.32,92.285,3.880387]
[1772709251412,4.12827828,92.33,92.287,3.880387]
[1772709251914,9.744,92.338,92.287,3.880387]
[1772709252116,4.12827828,92.34,92.295,9.748]
[1772709253123,4.12827828,92.34,92.298,9.748]
[1772709254118,9.744,92.339,92.298,9.748]
[1772709254520,4.12827828,92.34,92.298,9.748]
[1772709255218,3.95511386,92.367,92.306,3.880387]
[1772709255418,4.12827828,92.36,92.306,3.880387]
[1772709255624,4.12827828,92.37,92.311,3.880387]
[1772709256018,4.12827828,92.37,92.31,4.12827828]
[1772709256019,4.12827828,92.38,92.33,4.12827828]
[1772709256325,4.12827828,92.39,92.34,8.00866528]
[1772709256523,4.12827828,92.39,92.341,3.880387]
[1772709257525,9.738,92.392,92.343,13.623387]
[1772709257721,4.12827828,92.39,92.343,13.623387]
[1772709258217,10.11704183,92.439,92.343,13.623387]
[1772709258218,4.12827828,92.38,92.343,3.880387]
[1772709258918,7.93515905,92.38,92.335,9.744]
[1772709259115,7.93515905,92.38,92.336,3.74692799]
[1772709262324,3.80688077,92.379,92.336,3.74692799]
[1772709262524,4.12827828,92.36,92.316,3.74692799]
[1772709263431,4.12827828,92.37,92.325,3.74692799]
[1772709264326,3.80688077,92.383,92.339,3.74692799]
[1772709264529,4.12827828,92.39,92.295,19.497]
[1772709264530,4.12827828,92.39,92.341,3.74692799]
[1772709265530,9.738,92.39,92.342,3.74692799]
[1772709265730,13.86627828,92.39,92.342,3.74692799]
[1772709266431,13.86627828,92.39,92.343,9.743]
[1772709266632,3.80688077,92.389,92.343,9.743]
[1772709267430,4.12827828,92.37,92.323,3.93233628]
[1772709267637,3.62615574,92.379,92.323,3.93233628]
[1772709268134,4.12827828,92.37,92.323,3.93233628]
[1772709268435,9.74,92.378,92.326,3.93233628]
[1772709269527,9.74,92.378,92.33,9.745]
[1772709269835,13.36615574,92.376,92.33,9.745]
[1772709270036,4.12827828,92.37,92.33,9.745]
[1772709270731,4.12827828,92.37,92.326,3.93233628]
[1772709270932,7.75443402,92.36,92.311,3.93233628]
[1772709271734,4.12827828,92.35,92.311,13.67933628]
[1772709271938,9.742,92.359,92.311,13.67933628]
[1772709272135,4.12827828,92.35,92.311,13.67933628]
[1772709272339,3.62615574,92.358,92.311,13.67933628]
[1772709272535,4.12827828,92.35,92.311,13.67933628]
[1772709273240,4.12827828,92.34,92.311,13.67933628]
[1772709273441,4.12827828,92.34,92.311,9.747]
[1772709275041,4.12827828,92.35,92.311,9.747]
[1772709275944,7.75443402,92.35,92.311,9.747]
[1772709276141,4.12827828,92.34,92.302,9.748]
[1772709276335,4.12827828,92.34,92.297,3.93233628]
[1772709277238,4.12827828,92.34,92.306,9.747]
[1772709277434,4.12827828,92.33,92.306,9.747]
[1772709277643,4.12827828,92.34,92.306,9.747]
[1772709277946,4.12827828,92.34,92.309,9.747]
[1772709278140,4.12827828,92.34,92.297,3.93233628]
[1772709279545,4.12827828,92.34,92.316,9.746]
[1772709280148,3.62615574,92.349,92.316,9.746]
[1772709280443,4.12827828,92.35,92.309,3.93233628]
[1772709282045,4.12827828,92.34,92.309,3.93233628]
[1772709286937,3.62615574,92.349,92.309,3.93233628]
[1772709289146,3.62615574,92.349,92.311,9.747]
[1772709289547,3.62615574,92.349,92.309,3.93233628]
[1772709290550,3.62615574,92.349,92.318,9.746]
[1772709292246,3.62615574,92.349,92.309,3.93233628]
[1772709292454,4.12827828,92.34,92.309,3.93233628]
[1772709293750,4.12827828,92.34,92.301,9.748]
[1772709293955,4.12827828,92.33,92.302,3.6255965]
[1772709294254,4.12827828,92.33,92.256,19.505]
[1772709294255,4.12827828,92.32,92.29,3.6255965]
[1772709294454,4.12827828,92.35,92.291,3.6255965]
[1772709294652,4.12827828,92.36,92.31,4.12827828]
[1772709294956,7.76038239,92.37,92.323,3.6255965]
[1772709295360,3.63210411,92.369,92.323,3.6255965]
[1772709295851,4.12827828,92.36,92.323,3.6255965]
[1772709296055,3.63210411,92.369,92.323,3.6255965]
[1772709296258,4.12827828,92.36,92.323,13.3705965]
[1772709297560,4.12827828,92.36,92.324,3.6255965]
[1772709298462,4.12710859,92.36,92.324,3.6255965]
[1772709299666,4.12710859,92.36,92.326,9.745]